[Event "*** Titled Tuesday Blitz"]
[Site "Chess.com"]
[Date "2020.05.19"]
[Round "7"]
[White "praveenb2002"]
[Black "Salem-AR"]
[Result "0-1"]
[WhiteElo "2720"]
[BlackElo "3036"]
[TimeControl "180+1"]
[EndTime "13:21:47 PDT"]
[Termination "Salem-AR won on time"]

1. d4 {[%clk 0:03:00.9]} 1... Nf6 {[%clk 0:03:00.1]} 2. c4 {[%clk 0:03:01.1]}
2... g6 {[%clk 0:03:00.8]} 3. Nc3 {[%clk 0:03:01]} 3... Bg7 {[%clk 0:03:01.5]}
4. g3 {[%clk 0:03:00.6]} 4... O-O {[%clk 0:03:00.7]} 5. Bg2 {[%clk 0:03:00.5]}
5... d6 {[%clk 0:03:01.6]} 6. Nf3 {[%clk 0:03:00.3]} 6... Nbd7 {[%clk
0:03:02.2]} 7. O-O {[%clk 0:02:59.9]} 7... e5 {[%clk 0:03:03.1]} 8. h3 {[%clk
0:02:55.6]} 8... Re8 {[%clk 0:03:02]} 9. e4 {[%clk 0:02:55.7]} 9... exd4 {[%clk
0:03:02]} 10. Nxd4 {[%clk 0:02:55.8]} 10... Nc5 {[%clk 0:03:02.9]} 11. Re1
{[%clk 0:02:54.5]} 11... Bd7 {[%clk 0:03:03.8]} 12. Rb1 {[%clk 0:02:52.2]} 12...
a6 {[%clk 0:03:03.8]} 13. b4 {[%clk 0:02:46.1]} 13... Ne6 {[%clk 0:03:04]} 14.
Be3 {[%clk 0:02:46.7]} 14... Qc8 {[%clk 0:02:23.4]} 15. Kh2 {[%clk 0:02:39.6]}
15... c6 {[%clk 0:02:15.8]} 16. Nde2 {[%clk 0:02:36.7]} 16... Qc7 {[%clk
0:02:12.8]} 17. Qd2 {[%clk 0:02:36.2]} 17... Rad8 {[%clk 0:02:03.6]} 18. a4
{[%clk 0:02:22.9]} 18... h5 {[%clk 0:02:00.2]} 19. a5 {[%clk 0:02:21.6]} 19...
h4 {[%clk 0:01:51.8]} 20. Bb6 {[%clk 0:02:20.6]} 20... hxg3+ {[%clk 0:01:52.2]}
21. fxg3 {[%clk 0:02:20]} 21... Qb8 {[%clk 0:01:52.6]} 22. Bxd8 {[%clk
0:02:16.3]} 22... Rxd8 {[%clk 0:01:50]} 23. Rbd1 {[%clk 0:02:16.6]} 23... Ne8
{[%clk 0:01:32.1]} 24. Qe3 {[%clk 0:02:11.6]} 24... Be5 {[%clk 0:01:29.1]} 25.
Nf4 {[%clk 0:02:04.9]} 25... N8g7 {[%clk 0:01:12.1]} 26. Nce2 {[%clk 0:02:01.2]}
26... Nxf4 {[%clk 0:00:50.3]} 27. Nxf4 {[%clk 0:01:46.1]} 27... Re8 {[%clk
0:00:42.3]} 28. Qf3 {[%clk 0:01:45.6]} 28... Be6 {[%clk 0:00:36.6]} 29. Nxe6
{[%clk 0:01:40.7]} 29... Rxe6 {[%clk 0:00:34.4]} 30. Rf1 {[%clk 0:01:23.3]}
30... Qe8 {[%clk 0:00:34.6]} 31. Rd3 {[%clk 0:01:12.9]} 31... Nh5 {[%clk
0:00:33.9]} 32. Qg4 {[%clk 0:01:02.2]} 32... Qe7 {[%clk 0:00:33.9]} 33. Rdf3
{[%clk 0:01:00.6]} 33... Rf6 {[%clk 0:00:30.5]} 34. Rxf6 {[%clk 0:00:48.3]}
34... Nxf6 {[%clk 0:00:30.5]} 35. Qc8+ {[%clk 0:00:48.1]} 35... Kg7 {[%clk
0:00:30.3]} 36. Rb1 {[%clk 0:00:34.1]} 36... Nh5 {[%clk 0:00:28.7]} 37. Rb3
{[%clk 0:00:34.4]} 37... Qg5 {[%clk 0:00:20.8]} 38. Qg4 {[%clk 0:00:33.7]} 38...
Qd2 {[%clk 0:00:20.8]} 39. Rf3 {[%clk 0:00:18.1]} 39... Qxb4 {[%clk 0:00:17.4]}
40. Qd7 {[%clk 0:00:17.4]} 40... Nf6 {[%clk 0:00:17.1]} 41. Qc7 {[%clk
0:00:15.7]} 41... Qb2 {[%clk 0:00:11.4]} 42. Qd8 {[%clk 0:00:14]} 42... Qb4
{[%clk 0:00:09.4]} 43. Qc7 {[%clk 0:00:13.6]} 43... Qb2 {[%clk 0:00:08.6]} 44.
Qd8 {[%clk 0:00:13.9]} 44... Qd4 {[%clk 0:00:08.9]} 45. Qc7 {[%clk 0:00:11.7]}
45... d5 {[%clk 0:00:09]} 46. Qxb7 {[%clk 0:00:10.7]} 46... dxe4 {[%clk
0:00:09.6]} 47. Rf1 {[%clk 0:00:09.8]} 47... Qc3 {[%clk 0:00:09.2]} 48. Qxc6
{[%clk 0:00:07.4]} 48... Qxg3+ {[%clk 0:00:09.3]} 49. Kg1 {[%clk 0:00:07.9]}
49... e3 {[%clk 0:00:09.5]} 50. Rxf6 {[%clk 0:00:06]} 50... Bxf6 {[%clk
0:00:08.2]} 51. Qf3 {[%clk 0:00:05.7]} 51... Qe1+ {[%clk 0:00:07.6]} 52. Qf1
{[%clk 0:00:04]} 52... Qxa5 {[%clk 0:00:07.7]} 53. Qe2 {[%clk 0:00:02.6]} 53...
Qg5 {[%clk 0:00:07.5]} 54. Kf1 {[%clk 0:00:02.4]} 54... Bd4 {[%clk 0:00:07.6]}
55. Ke1 {[%clk 0:00:02.4]} 55... Bc3+ {[%clk 0:00:07.4]} 56. Kd1 {[%clk
0:00:02.5]} 56... Qe5 {[%clk 0:00:07.9]} 57. Kc2 {[%clk 0:00:02.7]} 57... Bd4
{[%clk 0:00:08.4]} 58. Bf3 {[%clk 0:00:01.6]} 58... a5 {[%clk 0:00:08.4]} 59.
Kb3 {[%clk 0:00:01.9]} 59... Qb8+ {[%clk 0:00:08]} 60. Kc2 {[%clk 0:00:02.3]}
60... Qb4 {[%clk 0:00:08.2]} 61. Kd3 {[%clk 0:00:02.6]} 61... Qc3+ {[%clk
0:00:08.4]} 62. Ke4 {[%clk 0:00:03.2]} 62... a4 {[%clk 0:00:09.3]} 63. Kd5
{[%clk 0:00:03.3]} 63... Bf6 {[%clk 0:00:09.6]} 64. Be4 {[%clk 0:00:02.7]} 64...
a3 {[%clk 0:00:09.9]} 65. Qd3 {[%clk 0:00:02.9]} 65... Qxd3+ {[%clk 0:00:10.2]}
0-1

[Event "*** Titled Tuesday Blitz"]
[Site "Chess.com"]
[Date "2020.05.19"]
[Round "7"]
[White "StegariuVlad"]
[Black "Elbek_Jumanov"]
[Result "1/2-1/2"]
[WhiteElo "2565"]
[BlackElo "2423"]
[TimeControl "180+1"]
[EndTime "13:21:48 PDT"]
[Termination "Game drawn - timeout vs insufficient material"]

1. e4 {[%clk 0:03:00.9]} 1... c5 {[%clk 0:02:58.9]} 2. Nf3 {[%clk 0:02:59.9]}
2... e6 {[%clk 0:02:55.9]} 3. d4 {[%clk 0:02:58]} 3... cxd4 {[%clk 0:02:56.4]}
4. Nxd4 {[%clk 0:02:54.2]} 4... Nf6 {[%clk 0:02:56.8]} 5. Nc3 {[%clk 0:02:52.6]}
5... d6 {[%clk 0:02:56.8]} 6. Be2 {[%clk 0:02:51.1]} 6... a6 {[%clk 0:02:56.3]}
7. a4 {[%clk 0:02:50.8]} 7... Be7 {[%clk 0:02:55.5]} 8. O-O {[%clk 0:02:50.2]}
8... O-O {[%clk 0:02:54.7]} 9. f4 {[%clk 0:02:49.7]} 9... Qc7 {[%clk 0:02:54.2]}
10. Be3 {[%clk 0:02:49.2]} 10... Nc6 {[%clk 0:02:51.3]} 11. Nb3 {[%clk
0:02:48.4]} 11... b6 {[%clk 0:02:50.4]} 12. Bf3 {[%clk 0:02:47.5]} 12... Bb7
{[%clk 0:02:49.7]} 13. Qe2 {[%clk 0:02:44.2]} 13... Rac8 {[%clk 0:02:45.2]} 14.
Qf2 {[%clk 0:02:34.2]} 14... Nd7 {[%clk 0:02:43.7]} 15. Ne2 {[%clk 0:02:30.9]}
15... Nb4 {[%clk 0:02:38]} 16. Ned4 {[%clk 0:02:27.6]} 16... Rfe8 {[%clk
0:02:18.5]} 17. c3 {[%clk 0:02:25.8]} 17... Nd3 {[%clk 0:02:16.1]} 18. Qe2
{[%clk 0:02:24.4]} 18... N3c5 {[%clk 0:02:15.3]} 19. Nd2 {[%clk 0:02:14.4]}
19... Bf8 {[%clk 0:02:08.6]} 20. b4 {[%clk 0:02:12.5]} 20... e5 {[%clk
0:02:00.8]} 21. bxc5 {[%clk 0:01:40.9]} 21... exd4 {[%clk 0:02:00.2]} 22. cxd6
{[%clk 0:01:40.8]} 22... Qxc3 {[%clk 0:01:59.4]} 23. Bf2 {[%clk 0:01:37.1]}
23... Bxd6 {[%clk 0:01:45.5]} 24. e5 {[%clk 0:01:37.2]} 24... Bxf3 {[%clk
0:01:43.1]} 25. Nxf3 {[%clk 0:01:36.4]} 25... Bc5 {[%clk 0:01:39.7]} 26. Rfc1
{[%clk 0:01:35.6]} 26... Qb3 {[%clk 0:01:35]} 27. Qxa6 {[%clk 0:01:32.5]} 27...
d3 {[%clk 0:01:31.5]} 28. Qb5 {[%clk 0:01:24.8]} 28... Bxf2+ {[%clk 0:01:08]}
29. Kxf2 {[%clk 0:01:23.2]} 29... Rc2+ {[%clk 0:01:08.5]} 30. Kg1 {[%clk
0:01:11.9]} 30... Qc3 {[%clk 0:01:08.1]} 31. Rd1 {[%clk 0:01:08]} 31... Rd8
{[%clk 0:00:43.2]} 32. Qxd3 {[%clk 0:01:05.1]} 32... Qb2 {[%clk 0:00:43.7]} 33.
Rab1 {[%clk 0:00:54.3]} 33... Rxg2+ {[%clk 0:00:42.4]} 34. Kh1 {[%clk
0:00:54.6]} 34... Qa2 {[%clk 0:00:35.2]} 35. Rbc1 {[%clk 0:00:48.3]} 35... h6
{[%clk 0:00:29.2]} 36. Rc7 {[%clk 0:00:47.5]} 36... Qf2 {[%clk 0:00:20.3]} 37.
Rd2 {[%clk 0:00:36.8]} 37... Rxh2+ {[%clk 0:00:07.3]} 38. Nxh2 {[%clk
0:00:34.8]} 38... Qxf4 {[%clk 0:00:06.4]} 39. Rxd7 {[%clk 0:00:33.3]} 39... Rxd7
{[%clk 0:00:05.6]} 40. Qxd7 {[%clk 0:00:33.1]} 40... Qe4+ {[%clk 0:00:06.1]} 41.
Kg1 {[%clk 0:00:32.1]} 41... Qe3+ {[%clk 0:00:06.1]} 42. Rf2 {[%clk 0:00:30.8]}
42... Qg3+ {[%clk 0:00:06.2]} 43. Kf1 {[%clk 0:00:29.3]} 43... Qh3+ {[%clk
0:00:05.8]} 44. Ke2 {[%clk 0:00:29.4]} 44... Qxd7 {[%clk 0:00:05.4]} 45. Nf3
{[%clk 0:00:25.9]} 45... Qxa4 {[%clk 0:00:05.7]} 46. Ke3 {[%clk 0:00:24.2]}
46... b5 {[%clk 0:00:06.1]} 47. Rd2 {[%clk 0:00:24.3]} 47... Qb3+ {[%clk
0:00:05.9]} 48. Ke4 {[%clk 0:00:24.2]} 48... Qc4+ {[%clk 0:00:06.2]} 49. Nd4
{[%clk 0:00:24.1]} 49... Qc3 {[%clk 0:00:06.1]} 50. Rc2 {[%clk 0:00:24]} 50...
Qe1+ {[%clk 0:00:05.3]} 51. Kd5 {[%clk 0:00:23.9]} 51... b4 {[%clk 0:00:05.1]}
52. Rc8+ {[%clk 0:00:23.8]} 52... Kh7 {[%clk 0:00:04.6]} 53. Rb8 {[%clk
0:00:24.7]} 53... Qh1+ {[%clk 0:00:04.2]} 54. Kc4 {[%clk 0:00:24.8]} 54... Qe4
{[%clk 0:00:04.6]} 55. Rb5 {[%clk 0:00:23.7]} 55... h5 {[%clk 0:00:03.7]} 56. e6
{[%clk 0:00:21]} 56... fxe6 {[%clk 0:00:01.9]} 57. Rxh5+ {[%clk 0:00:20.5]}
57... Kg6 {[%clk 0:00:02.5]} 58. Rc5 {[%clk 0:00:20.3]} 58... e5 {[%clk
0:00:02.7]} 59. Kxb4 {[%clk 0:00:20.6]} 59... Qxd4+ {[%clk 0:00:02.5]} 60. Rc4
{[%clk 0:00:21.1]} 60... Qxc4+ {[%clk 0:00:02.5]} 61. Kxc4 {[%clk 0:00:21.5]}
61... Kf5 {[%clk 0:00:03.1]} 62. Kd3 {[%clk 0:00:22]} 62... g5 {[%clk
0:00:03.7]} 63. Ke3 {[%clk 0:00:22.5]} 63... g4 {[%clk 0:00:04.4]} 64. Kf2
{[%clk 0:00:22.6]} 64... e4 {[%clk 0:00:05]} 65. Kg2 {[%clk 0:00:23.2]} 65...
Kf4 {[%clk 0:00:04.8]} 66. Kf2 {[%clk 0:00:23.5]} 66... e3+ {[%clk 0:00:05]} 67.
Ke2 {[%clk 0:00:23.8]} 1/2-1/2

[Event "*** Titled Tuesday Blitz"]
[Site "Chess.com"]
[Date "2020.05.19"]
[Round "7"]
[White "GigaQuparadze"]
[Black "Gajuchess"]
[Result "1-0"]
[WhiteElo "2869"]
[BlackElo "2730"]
[TimeControl "180+1"]
[EndTime "13:21:55 PDT"]
[Termination "GigaQuparadze won on time"]

1. e4 {[%clk 0:03:00.9]} 1... c5 {[%clk 0:02:59.4]} 2. Nc3 {[%clk 0:03:00.1]}
2... e6 {[%clk 0:02:58]} 3. Nf3 {[%clk 0:02:59.4]} 3... a6 {[%clk 0:02:57.8]} 4.
d4 {[%clk 0:02:59.1]} 4... cxd4 {[%clk 0:02:58.7]} 5. Nxd4 {[%clk 0:03:00]} 5...
Qc7 {[%clk 0:02:59.3]} 6. f4 {[%clk 0:02:59.4]} 6... Nc6 {[%clk 0:02:58]} 7. Be3
{[%clk 0:02:58.5]} 7... b5 {[%clk 0:02:56.2]} 8. Nxc6 {[%clk 0:02:56.1]} 8...
Qxc6 {[%clk 0:02:56.4]} 9. Bd3 {[%clk 0:02:56]} 9... Bb7 {[%clk 0:02:56.5]} 10.
a3 {[%clk 0:02:55.2]} 10... Rc8 {[%clk 0:02:56.6]} 11. O-O {[%clk 0:02:54.7]}
11... Bc5 {[%clk 0:02:55.9]} 12. Bxc5 {[%clk 0:02:54.3]} 12... Qxc5+ {[%clk
0:02:56.8]} 13. Kh1 {[%clk 0:02:54.8]} 13... Ne7 {[%clk 0:02:49.9]} 14. Qg4
{[%clk 0:02:53.3]} 14... O-O {[%clk 0:02:43.2]} 15. f5 {[%clk 0:02:52.5]} 15...
Qe5 {[%clk 0:02:39.6]} 16. Rae1 {[%clk 0:02:44.5]} 16... Kh8 {[%clk 0:02:16.7]}
17. Nd1 {[%clk 0:02:30.8]} 17... Ng8 {[%clk 0:02:15.1]} 18. c3 {[%clk
0:02:30.5]} 18... Nf6 {[%clk 0:02:14.6]} 19. Qh4 {[%clk 0:02:30.5]} 19... d5
{[%clk 0:02:04.3]} 20. Nf2 {[%clk 0:02:16]} 20... Rcd8 {[%clk 0:01:42.2]} 21.
exd5 {[%clk 0:02:04.2]} 21... Qxd5 {[%clk 0:01:41.1]} 22. Qh3 {[%clk 0:02:04.2]}
22... exf5 {[%clk 0:01:34.4]} 23. Bxf5 {[%clk 0:02:00.7]} 23... g6 {[%clk
0:01:26.7]} 24. Ne4 {[%clk 0:01:57.9]} 24... Nxe4 {[%clk 0:00:45.7]} 25. Bxe4
{[%clk 0:01:58.8]} 25... Qd7 {[%clk 0:00:45.9]} 26. Qf3 {[%clk 0:01:54]} 26...
Bxe4 {[%clk 0:00:43.8]} 27. Qf6+ {[%clk 0:01:53.8]} 27... Kg8 {[%clk 0:00:44.2]}
28. Rxe4 {[%clk 0:01:54.3]} 28... Qd6 {[%clk 0:00:39.1]} 29. h3 {[%clk
0:01:52.4]} 29... Rd7 {[%clk 0:00:30.5]} 30. a4 {[%clk 0:01:46.2]} 30... Qd3
{[%clk 0:00:29]} 31. Ref4 {[%clk 0:01:37.5]} 31... bxa4 {[%clk 0:00:28.5]} 32.
Rxa4 {[%clk 0:01:36]} 32... Rd6 {[%clk 0:00:26.3]} 33. Qf4 {[%clk 0:01:31.3]}
33... Re6 {[%clk 0:00:21.7]} 34. Rd4 {[%clk 0:01:29.3]} 34... Qb5 {[%clk
0:00:21]} 35. Rb4 {[%clk 0:01:27.7]} 35... Qd5 {[%clk 0:00:19.7]} 36. Rd4 {[%clk
0:01:22.9]} 36... Qb5 {[%clk 0:00:19.1]} 37. b4 {[%clk 0:01:22.3]} 37... a5
{[%clk 0:00:19.2]} 38. Kh2 {[%clk 0:01:19.5]} 38... a4 {[%clk 0:00:18.8]} 39.
Ra1 {[%clk 0:01:15.8]} 39... Rfe8 {[%clk 0:00:14.4]} 40. Qf3 {[%clk 0:01:12.1]}
40... Re2 {[%clk 0:00:14.1]} 41. Rd5 {[%clk 0:01:06.6]} 41... Qb8+ {[%clk
0:00:13.7]} 42. Qg3 {[%clk 0:01:05.6]} 42... Qxg3+ {[%clk 0:00:10]} 43. Kxg3
{[%clk 0:01:06.5]} 43... R2e3+ {[%clk 0:00:10.9]} 44. Kh2 {[%clk 0:01:06.4]}
44... Rxc3 {[%clk 0:00:11.8]} 45. Rxa4 {[%clk 0:01:06.5]} 45... Rc2 {[%clk
0:00:11.9]} 46. Rg5 {[%clk 0:01:01.5]} 46... Ree2 {[%clk 0:00:11.7]} 47. b5
{[%clk 0:01:00.4]} 47... Rb2 {[%clk 0:00:12.3]} 48. Ra8+ {[%clk 0:00:57.5]}
48... Kg7 {[%clk 0:00:12.7]} 49. Rb8 {[%clk 0:00:58]} 49... h6 {[%clk
0:00:13.6]} 50. Rg3 {[%clk 0:00:57.8]} 50... Re5 {[%clk 0:00:13]} 51. b6 {[%clk
0:00:57.7]} 51... Re6 {[%clk 0:00:13.4]} 52. b7 {[%clk 0:00:57.9]} 52... Re7
{[%clk 0:00:13.9]} 53. h4 {[%clk 0:00:56.3]} 53... Rexb7 {[%clk 0:00:14.4]} 54.
Rxb7 {[%clk 0:00:56.2]} 54... Rxb7 {[%clk 0:00:15.3]} 55. Rc3 {[%clk 0:00:56.4]}
55... Rb4 {[%clk 0:00:15.5]} 56. g3 {[%clk 0:00:56.7]} 56... g5 {[%clk
0:00:16.4]} 57. hxg5 {[%clk 0:00:56.7]} 57... hxg5 {[%clk 0:00:17.3]} 58. Kg2
{[%clk 0:00:56.8]} 58... Kg6 {[%clk 0:00:17.6]} 59. Kh3 {[%clk 0:00:54.6]} 59...
f6 {[%clk 0:00:17.7]} 60. Rc8 {[%clk 0:00:54.3]} 60... Ra4 {[%clk 0:00:18]} 61.
g4 {[%clk 0:00:54]} 61... Ra3+ {[%clk 0:00:17.8]} 62. Kg2 {[%clk 0:00:54.3]}
62... Kf7 {[%clk 0:00:18.2]} 63. Rc6 {[%clk 0:00:54.5]} 63... Ke7 {[%clk
0:00:18.5]} 64. Rb6 {[%clk 0:00:54.7]} 64... Rd3 {[%clk 0:00:18.7]} 65. Kf2
{[%clk 0:00:54.5]} 65... Rd6 {[%clk 0:00:19]} 66. Rb5 {[%clk 0:00:54]} 66... Ke6
{[%clk 0:00:19.9]} 67. Ke3 {[%clk 0:00:54.3]} 67... Rd5 {[%clk 0:00:20.1]} 68.
Rb4 {[%clk 0:00:54.4]} 68... Ra5 {[%clk 0:00:18.8]} 69. Ke4 {[%clk 0:00:51.1]}
69... Re5+ {[%clk 0:00:17.2]} 70. Kf3 {[%clk 0:00:50.9]} 70... Re1 {[%clk
0:00:14.8]} 71. Rb6+ {[%clk 0:00:50.5]} 71... Kf7 {[%clk 0:00:14.4]} 72. Rb7+
{[%clk 0:00:49.9]} 72... Kg6 {[%clk 0:00:14]} 73. Ra7 {[%clk 0:00:49.5]} 73...
Rf1+ {[%clk 0:00:14]} 74. Kg3 {[%clk 0:00:49.9]} 74... Rf4 {[%clk 0:00:14.5]}
75. Rb7 {[%clk 0:00:49.6]} 75... Re4 {[%clk 0:00:14.3]} 76. Ra7 {[%clk
0:00:49.7]} 76... Re1 {[%clk 0:00:14]} 77. Rb7 {[%clk 0:00:49.4]} 77... Rh1
{[%clk 0:00:14.4]} 78. Kf3 {[%clk 0:00:49.1]} 1-0

[Event "*** Titled Tuesday Blitz"]
[Site "Chess.com"]
[Date "2020.05.19"]
[Round "7"]
[White "Djager97"]
[Black "ZverevLev"]
[Result "1-0"]
[WhiteElo "2385"]
[BlackElo "2191"]
[TimeControl "180+1"]
[EndTime "13:21:55 PDT"]
[Termination "Djager97 won by resignation"]

1. e4 {[%clk 0:03:00.9]} 1... e5 {[%clk 0:02:56.5]} 2. Nf3 {[%clk 0:03:00.3]}
2... Nc6 {[%clk 0:02:55.6]} 3. d4 {[%clk 0:03:00.8]} 3... exd4 {[%clk
0:02:54.1]} 4. Nxd4 {[%clk 0:03:01.7]} 4... Bc5 {[%clk 0:02:52]} 5. Nb3 {[%clk
0:03:01.5]} 5... Bb6 {[%clk 0:02:50.9]} 6. Qe2 {[%clk 0:03:02]} 6... Nf6 {[%clk
0:02:47.4]} 7. e5 {[%clk 0:03:01.5]} 7... Nd5 {[%clk 0:02:45.9]} 8. c4 {[%clk
0:03:01.3]} 8... Ndb4 {[%clk 0:02:43.8]} 9. c5 {[%clk 0:03:00.6]} 9... Ba5
{[%clk 0:02:43.2]} 10. Nxa5 {[%clk 0:02:40.7]} 10... Nxa5 {[%clk 0:02:44.1]} 11.
a3 {[%clk 0:01:50.6]} 11... Nb3 {[%clk 0:02:37.9]} 12. axb4 {[%clk 0:01:50.7]}
12... Nxa1 {[%clk 0:02:36.8]} 13. Qc4 {[%clk 0:01:43.8]} 13... O-O {[%clk
0:02:35.5]} 14. Bd3 {[%clk 0:01:41.2]} 14... d6 {[%clk 0:02:34.2]} 15. O-O
{[%clk 0:01:26.4]} 15... dxe5 {[%clk 0:02:32.4]} 16. Rd1 {[%clk 0:01:18.9]}
16... Qe7 {[%clk 0:02:28.9]} 17. Qa2 {[%clk 0:01:15.6]} 17... e4 {[%clk
0:02:12]} 18. Be2 {[%clk 0:01:10.8]} 18... Nc2 {[%clk 0:02:09.9]} 19. Qc4 {[%clk
0:01:06.9]} 19... Na1 {[%clk 0:02:08.5]} 20. Qa2 {[%clk 0:01:03.6]} 20... Be6
{[%clk 0:01:55]} 21. Qxa1 {[%clk 0:01:03.5]} 21... Bb3 {[%clk 0:01:55]} 22. Re1
{[%clk 0:01:00.7]} 22... a5 {[%clk 0:01:50.7]} 23. bxa5 {[%clk 0:00:54.5]} 23...
Qxc5 {[%clk 0:01:47.3]} 24. Be3 {[%clk 0:00:39.3]} 24... Qxa5 {[%clk 0:01:42.7]}
25. Qxa5 {[%clk 0:00:39.7]} 25... Rxa5 {[%clk 0:01:41.5]} 26. Nc3 {[%clk
0:00:37.6]} 26... f5 {[%clk 0:01:39.2]} 27. Bf4 {[%clk 0:00:34.5]} 27... c6
{[%clk 0:01:36.3]} 28. h3 {[%clk 0:00:27]} 28... Rfa8 {[%clk 0:01:34]} 29. g4
{[%clk 0:00:20.7]} 29... g6 {[%clk 0:01:31.1]} 30. Kg2 {[%clk 0:00:19.7]} 30...
Ra1 {[%clk 0:01:29.1]} 31. Rxa1 {[%clk 0:00:20.1]} 31... Rxa1 {[%clk 0:01:26.1]}
32. f3 {[%clk 0:00:16]} 32... exf3+ {[%clk 0:01:16.1]} 33. Bxf3 {[%clk
0:00:16.9]} 33... fxg4 {[%clk 0:01:14]} 34. hxg4 {[%clk 0:00:17.8]} 34... Ra8
{[%clk 0:01:03.3]} 35. g5 {[%clk 0:00:17.3]} 35... Rf8 {[%clk 0:01:01.9]} 36.
Kg3 {[%clk 0:00:17.3]} 36... Bc2 {[%clk 0:00:56]} 37. Ne4 {[%clk 0:00:16.7]}
37... Bxe4 {[%clk 0:00:54.4]} 38. Bxe4 {[%clk 0:00:17.6]} 38... Re8 {[%clk
0:00:54.1]} 39. Kf3 {[%clk 0:00:17.8]} 39... Kf7 {[%clk 0:00:51.2]} 40. Bd2
{[%clk 0:00:15.3]} 40... Rd8 {[%clk 0:00:50]} 41. Bc3 {[%clk 0:00:15.1]} 41...
Re8 {[%clk 0:00:44.7]} 42. Ke3 {[%clk 0:00:14]} 42... Ra8 {[%clk 0:00:41.9]} 43.
Kd4 {[%clk 0:00:12.4]} 43... Ra4+ {[%clk 0:00:40.8]} 44. Ke5 {[%clk 0:00:12.7]}
44... Ra8 {[%clk 0:00:38.4]} 45. Kd6 {[%clk 0:00:12.2]} 45... Re8 {[%clk
0:00:36]} 46. Bc2 {[%clk 0:00:12.2]} 46... Re6+ {[%clk 0:00:34.7]} 47. Kc7
{[%clk 0:00:11.1]} 47... Re7+ {[%clk 0:00:34.6]} 48. Kb6 {[%clk 0:00:11.5]}
48... Rd7 {[%clk 0:00:31.7]} 49. Bb3+ {[%clk 0:00:11]} 49... Ke7 {[%clk
0:00:30.7]} 50. Bf6+ {[%clk 0:00:11.1]} 50... Kd6 {[%clk 0:00:30.2]} 51. Bg8
{[%clk 0:00:09.9]} 51... c5 {[%clk 0:00:28.1]} 52. Bc4 {[%clk 0:00:08]} 52...
Rc7 {[%clk 0:00:19.5]} 53. Be5+ {[%clk 0:00:07]} 53... Kxe5 {[%clk 0:00:19.3]}
54. Kxc7 {[%clk 0:00:07.4]} 54... Kf5 {[%clk 0:00:16.6]} 55. Kxb7 {[%clk
0:00:06.2]} 55... Kxg5 {[%clk 0:00:17.5]} 56. Kc6 {[%clk 0:00:06.7]} 56... h5
{[%clk 0:00:18]} 57. Kxc5 {[%clk 0:00:07.3]} 57... h4 {[%clk 0:00:18.2]} 58. b4
{[%clk 0:00:08.2]} 58... Kf4 {[%clk 0:00:19.1]} 59. b5 {[%clk 0:00:08.6]} 59...
h3 {[%clk 0:00:15.3]} 60. b6 {[%clk 0:00:08.7]} 60... h2 {[%clk 0:00:15.6]} 61.
Bd5 {[%clk 0:00:09.3]} 61... g5 {[%clk 0:00:15.5]} 62. b7 {[%clk 0:00:09.5]}
62... g4 {[%clk 0:00:16.4]} 63. b8=Q+ {[%clk 0:00:09.8]} 63... Ke3 {[%clk
0:00:16.1]} 64. Qxh2 {[%clk 0:00:10.7]} 1-0